bitfinex/quotes_ETHUSD_20251226
["timestamp","ask_amount","ask_price","bid_price","bid_amount"]
[1766724950966,5.20108481,2972.4,2972.0,0.001]
[1766724951276,0.9528,2972.3,2972.0,0.001]
[1766724951447,0.9528,2972.3,2971.8,0.001]
[1766724952449,0.9528,2972.2,2971.8,0.001]
[1766724953154,1.49518626,2972.4,2971.8,0.6372]
[1766724953155,0.884,2972.4,2971.8,0.6372]
[1766724953356,0.884,2972.4,2971.9,0.0336485]
[1766724953654,0.884,2972.4,2972.0,0.6362]
[1766724954356,0.884,2972.4,2972.1,0.03364624]
[1766724954686,0.884,2972.4,2972.0,0.6362]
[1766724955047,3.364176,2972.5,2972.0,0.6362]
[1766724955781,4.31690507,2972.6,2972.0,0.6362]
[1766724955982,5.08498256,2972.6,2972.1,0.03364624]
[1766724956182,5.08498256,2972.6,2972.1,0.66984624]
[1766724956848,4.31690507,2972.6,2971.9,0.6362]
[1766724957281,4.31690507,2972.6,2972.0,0.03364737]
[1766724957480,4.31690507,2972.6,2972.0,0.6362]
[1766724958960,0.002,2973.0,2971.8,0.001]
[1766724958961,0.9528,2972.5,2971.8,0.001]
[1766724959955,0.9528,2972.5,2971.6,0.001]
[1766724960260,0.9528,2972.3,2971.3,0.001]
[1766724960563,0.18358,2972.2,2971.9,0.001]
[1766724960762,1.8358,2972.4,2971.9,0.001]
[1766724960763,3.36439794,2972.3,2971.9,0.001]
[1766724960975,0.9528,2972.6,2971.9,0.6708485]
[1766724961180,4.50046016,2972.6,2971.9,0.6708485]
[1766724961363,4.50046016,2972.6,2971.9,0.001]
[1766724961364,0.9528,2972.5,2971.9,0.001]
[1766724962855,3.36428475,2972.4,2971.9,0.001]
[1766724963055,0.9528,2972.3,2971.3,0.6372]
[1766724965698,0.9528,2972.1,2971.5,0.6372]
[1766724965864,0.9528,2972.1,2971.6,0.0336519]
[1766724967759,3.54768035,2972.6,2971.7,0.67085077]
[1766724967760,0.9528,2972.4,2971.7,0.67085077]
[1766724967964,1.49115516,2972.4,2971.7,0.67085077]
[1766724968166,0.9528,2972.4,2971.7,0.67085077]
[1766724969491,0.9528,2972.4,2971.7,0.6372]
[1766724969791,4.31719794,2972.3,2971.7,0.6372]
[1766724972391,0.9528,2972.2,2971.7,0.6372]
[1766724973194,0.9528,2972.2,2971.8,0.03364963]
[1766724973399,3.36596006,2972.7,2971.9,0.6372]
[1766724973582,0.002,2972.7,2972.1,0.6372]
[1766724973787,4.31875884,2972.7,2972.2,0.03364511]
[1766724975777,4.31875884,2972.7,2972.1,0.6372]
[1766724976072,5.08701837,2972.7,2972.1,0.6372]
[1766724976903,5.08701837,2972.7,2972.2,0.03364511]
[1766724977504,5.08701837,2972.7,2972.1,0.6372]
[1766724978204,0.9823,2972.9,2971.7,4.83833859]
[1766724978402,0.9823,2972.8,2971.9,3.95533859]
[1766724979701,0.9823,2972.8,2971.7,5.23033489]
[1766724979886,0.9823,2972.8,2971.7,8.20337348]
[1766724980081,0.9823,2972.8,2971.7,0.883]
[1766724980405,0.9823,2972.8,2971.8,0.42491231]
[1766724980406,0.9823,2972.6,2971.8,0.42491231]
[1766724982390,0.9823,2972.5,2971.8,0.42491231]
[1766724984708,4.34647203,2972.5,2971.8,0.42491231]
[1766724984909,0.9823,2972.5,2971.8,0.42491231]
[1766724987908,4.34647862,2972.5,2971.8,0.42491231]
[1766724988097,0.9823,2972.5,2971.9,0.52312722]
[1766724988300,0.002,2972.8,2972.0,0.03364737]
[1766724988506,0.002,2973.0,2972.4,3.95533859]
[1766724988704,0.002,2973.0,2972.5,0.03364171]
[1766724989203,0.002,2973.0,2972.3,0.03364397]
[1766724989381,0.002,2973.0,2972.4,0.48719826]
[1766724989581,0.002,2973.0,2972.5,0.03364171]
[1766724989983,3.36527077,2973.3,2972.5,0.03364171]
[1766724989984,0.002,2973.3,2972.5,0.03364171]
[1766724990214,0.002,2973.3,2972.6,3.95533859]
[1766724990786,3.36527945,2973.3,2972.4,7.80678034]
[1766724991112,0.002,2973.3,2972.5,0.88163154]
[1766724991417,0.002,2973.3,2972.5,4.24580218]
[1766724991989,0.002,2973.3,2972.5,0.88163154]
[1766724992691,0.002,2973.3,2972.6,0.03364058]
[1766724994619,0.002,2973.3,2972.5,0.88163154]
[1766724994788,0.002,2973.3,2972.6,0.81294544]
[1766724995306,0.9843,2973.2,2972.4,0.48719826]
[1766724996708,0.9823,2973.1,2972.4,0.48719826]
[1766724998908,4.34582721,2973.1,2972.4,0.48719826]
[1766724999507,0.9823,2973.0,2972.4,0.48719826]
[1766725000021,0.9823,2973.0,2972.4,0.48819826]
[1766725000429,0.9823,2973.0,2971.6,0.001]
[1766725000725,0.9823,2973.0,2971.9,3.95533859]
[1766725001025,0.9823,2973.0,2971.6,3.36616697]
[1766725001026,0.9823,2972.8,2971.8,3.36490233]
[1766725001194,0.9823,2972.8,2971.7,7.32037377]
[1766725001521,0.9823,2972.8,2971.8,4.43358735]
[1766725001891,0.9823,2972.8,2971.8,1.06865407]
[1766725002697,0.9823,2972.8,2971.9,7.35380567]
[1766725002897,0.9823,2972.8,2971.9,7.32015717]
[1766725003227,0.9823,2972.8,2972.0,0.03364737]
[1766725003429,0.9823,2972.8,2972.1,0.73538045]
[1766725004026,0.9823,2972.8,2972.2,0.03364511]
[1766725005306,4.34613399,2972.8,2972.2,0.03364511]
[1766725005717,0.9823,2972.8,2972.2,0.03364511]
[1766725007103,4.34615967,2972.8,2972.1,0.73538045]
[1766725007314,4.34615967,2972.8,2971.9,7.32011189]
[1766725007525,4.34615967,2972.8,2971.9,3.3647733]
[1766725007826,0.9182,2972.7,2972.0,0.03364737]
[1766725008027,0.9182,2972.7,2972.1,0.001]
[1766725008829,0.9182,2972.7,2972.1,0.34094791]
[1766725009431,0.9182,2972.7,2972.2,0.03364511]
[1766725009632,0.9182,2972.7,2972.1,0.001]
[1766725011417,4.28215171,2972.7,2972.1,0.001]
[1766725011616,0.9182,2972.6,2972.1,0.001]
[1766725017143,0.002,2972.7,2972.1,0.001]
[1766725017943,0.9202,2972.7,2972.1,0.001]
[1766725019412,3.3640584,2972.6,2972.1,0.001]
[1766725019742,0.9182,2972.6,2972.1,0.001]
[1766725021227,4.28227494,2972.6,2972.1,0.001]
[1766725021441,0.9182,2972.5,2972.1,0.001]
[1766725026642,0.9182,2972.4,2972.1,0.001]
[1766725026848,0.9182,2972.4,2972.0,0.001]
[1766725028957,0.9182,2972.3,2972.0,0.001]
[1766725029261,0.9182,2972.3,2971.6,0.001]
[1766725029449,6.72864724,2972.4,2971.6,0.001]
[1766725029450,0.9182,2972.1,2971.6,0.001]
[1766725029756,0.76468472,2972.2,2971.0,3.269e-05]
[1766725029757,0.9182,2971.9,2971.0,3.269e-05]
[1766725029926,0.9182,2971.9,2970.8,0.001]
[1766725030128,0.9182,2971.7,2970.5,3.36637688]
[1766725030328,0.31481305,2971.8,2970.6,7.33338348]
[1766725030329,0.9182,2971.5,2970.6,7.33338348]
[1766725030531,0.9182,2971.5,2970.9,0.0118]
[1766725030756,0.9182,2971.5,2971.0,4.00079729]
[1766725031256,0.9182,2971.5,2971.0,7.36661424]
[1766725031455,0.9182,2971.5,2971.0,8.40622389]
[1766725031758,0.9182,2971.5,2971.0,5.04040694]
[1766725031951,0.9182,2971.5,2971.0,8.43992957]
[1766725032149,0.9182,2971.5,2971.0,5.04040694]
[1766725032648,0.9182,2971.5,2971.0,1.07326835]
[1766725032848,0.9182,2971.5,2970.8,3.36602016]
[1766725033362,0.9182,2971.5,2971.0,0.001]
[1766725044447,0.9186,2971.4,2971.0,0.001]
[1766725045582,3.36507752,2971.7,2971.0,0.0128]
[1766725045583,0.9186,2971.7,2971.0,0.0128]
[1766725047565,0.9186,2971.7,2971.0,0.001]
[1766725047566,0.9186,2971.6,2971.0,0.001]
[1766725049657,0.9186,2971.5,2971.0,0.001]
[1766725053878,0.9206,2971.5,2971.0,0.001]
[1766725056175,0.9186,2971.4,2971.0,0.001]
[1766725059679,0.9186,2971.3,2971.0,0.001]
[1766725060948,0.9186,2971.3,2970.6,0.883]
[1766725061881,0.9186,2971.2,2970.6,0.883]
[1766725064779,3.36566622,2971.2,2970.6,0.883]
[1766725064957,0.9784,2971.1,2970.6,0.883]
[1766725070373,0.9784,2971.1,2970.6,0.833]
[1766725070792,0.9784,2971.1,2970.5,0.001]
[1766725070793,0.9784,2971.0,2970.5,0.001]
[1766725071169,0.9784,2970.9,2970.5,0.001]
[1766725072284,0.9784,2971.3,2970.5,0.03466436]
[1766725072489,0.9784,2971.3,2970.5,0.04746436]
[1766725073192,0.9784,2971.3,2970.6,0.0128]
[1766725073395,0.9784,2971.3,2970.5,3.40102636]
[1766725073396,0.9784,2971.3,2970.8,0.0128]
[1766725079916,0.9804,2971.3,2970.8,0.0128]
[1766725080607,0.002,2971.3,2970.9,0.04645983]
[1766725083031,0.002,2971.5,2971.0,0.0128]
[1766725083227,0.002,2971.5,2971.0,0.0464587]
[1766725083405,0.002,2971.5,2971.0,0.0128]
[1766725083793,0.9804,2971.5,2971.0,0.0128]
[1766725084529,0.9784,2971.4,2970.8,0.03366096]
[1766725085431,0.9784,2971.4,2970.8,0.0108]
[1766725086131,0.9784,2971.8,2970.8,6.7321818]
[1766725086351,3.36435908,2972.4,2971.6,3.95856657]
[1766725086352,0.9784,2972.4,2971.6,3.95856657]
[1766725087033,0.9784,2972.4,2971.7,3.36507722]
[1766725087198,0.9784,2972.4,2971.8,0.03364963]
[1766725087399,0.9784,2972.4,2971.7,3.36507722]
[1766725087820,0.9784,2972.4,2971.7,6.73015444]
[1766725088016,0.9784,2972.4,2971.8,1.0688721]
[1766725088211,0.9784,2972.4,2971.9,0.0336485]
[1766725088423,0.9784,2972.4,2971.8,1.0688721]
[1766725089112,0.9784,2972.4,2971.9,6.72970152]
[1766725089313,0.9784,2972.4,2972.0,0.03364737]
[1766725090201,0.9784,2972.4,2971.9,6.72970152]
[1766725090402,0.9784,2972.4,2971.9,7.50955888]
[1766725090636,0.9784,2972.4,2971.9,4.14470812]
[1766725091429,0.9784,2972.4,2971.9,0.77985736]
[1766725091601,0.9784,2972.4,2971.9,3.36475978]
[1766725092131,0.9784,2972.4,2971.8,3.36494639]
[1766725093604,0.9784,2972.4,2971.6,6.73035466]
[1766725094330,0.9804,2972.4,2971.6,3.3651642]
[1766725094523,0.9804,2972.4,2971.7,0.03365077]
[1766725094826,0.9818,2972.3,2971.7,0.03365077]
[1766725095616,0.9818,2972.3,2971.3,3.737163]
[1766725096508,0.9818,2972.3,2971.4,0.03365416]
[1766725096707,0.9818,2972.3,2971.4,9.223229]
[1766725096916,0.9818,2972.3,2971.3,9.210229]
[1766725097118,0.9818,2972.3,2971.4,2.27962625]
[1766725099339,0.9818,2972.3,2971.6,6.73038092]
[1766725099937,0.9818,2972.3,2971.7,0.03365077]
[1766725101442,0.9818,2972.3,2971.8,3.36496399]
[1766725102742,0.9838,2972.3,2971.8,3.36496399]
[1766725103247,0.9838,2972.3,2971.7,3.36503028]
[1766725103717,0.9838,2972.3,2971.5,6.73060742]
[1766725103915,0.9838,2972.3,2971.6,1.06868391]
[1766725104411,0.9838,2972.3,2971.6,1.10233581]
[1766725105764,0.9838,2972.3,2971.7,6.73015444]
[1766725106118,0.9838,2972.3,2971.8,0.03364963]
[1766725108342,0.9838,2972.3,2971.9,6.72970152]
[1766725108343,0.002,2972.3,2971.9,6.72970152]
[1766725108545,0.002,2972.3,2972.0,1.07195828]
[1766725111218,0.002,2972.3,2972.0,4.43663068]
[1766725113546,0.9838,2972.3,2972.0,1.07195828]
[1766725113754,0.9838,2972.3,2971.7,3.36501168]
[1766725116060,0.9838,2972.3,2971.5,0.001]
[1766725124739,0.9075,2972.2,2971.5,0.001]
[1766725125359,0.9075,2972.1,2971.5,0.001]
[1766725125558,0.9075,2971.9,2971.0,3.3658314]
[1766725125757,0.9075,2971.7,2971.0,3.3658314]
[1766725125957,0.9075,2971.7,2971.1,3.36572588]
[1766725126472,0.9075,2971.7,2971.0,0.0336587]
[1766725127174,0.9075,2971.7,2971.0,3.39947618]
[1766725127586,0.9075,2971.7,2971.0,3.40047618]
[1766725130773,0.9075,2971.7,2971.0,4.0772207]
[1766725130976,0.9075,2971.9,2971.0,4.0772207]
[1766725132676,0.9075,2971.8,2971.0,4.043562]
[1766725137472,0.9075,2971.8,2971.0,4.04361044]
[1766725137778,0.9075,2971.8,2971.0,0.001]
[1766725137977,0.9075,2971.7,2971.0,0.001]
[1766725140376,0.9075,2971.7,2971.0,3.36687007]
[1766725140574,0.9075,2971.7,2971.1,0.03365756]
[1766725140884,0.9075,2971.7,2971.1,0.71030593]
[1766725141067,0.9075,2971.9,2971.1,0.71030593]
[1766725141853,0.9075,2972.2,2971.1,4.66653761]
[1766725142059,0.883,2972.1,2971.1,4.66653761]
[1766725142260,0.9075,2972.0,2971.2,1.13992777]
[1766725142588,0.9075,2972.0,2971.3,3.39911576]
[1766725143389,0.002,2971.7,2971.3,3.39911576]
[1766725143561,0.002,2971.7,2971.2,1.13992777]
[1766725143754,0.002,2971.7,2971.2,4.50550379]
[1766725143959,0.002,2971.7,2971.3,0.51821522]
[1766725144555,0.002,2971.7,2971.3,3.88373462]
[1766725146062,0.002,2971.7,2971.4,0.03365416]
[1766725147472,0.9075,2971.9,2971.4,0.03365416]
[1766725150990,0.002,2972.3,2971.4,3.36536708]
[1766725150991,0.9095,2972.3,2971.4,3.36536708]
[1766725151168,0.9095,2972.3,2971.5,0.38835823]
[1766725152124,0.002,2971.9,2971.5,0.38835823]
[1766725152584,0.002,2971.9,2971.5,3.75364198]
[1766725154282,0.002,2972.3,2971.6,0.0336519]
[1766725154487,0.002,2972.3,2971.6,0.74891166]
[1766725154686,0.9277,2972.3,2971.6,0.74891166]
[1766725156390,0.9277,2972.3,2971.6,4.08039757]
[1766725156592,0.9277,2972.3,2971.6,7.44558803]
[1766725157179,0.9277,2972.3,2971.6,4.08039757]
[1766725157380,0.9277,2972.3,2971.7,1.17257807]
[1766725157579,0.9277,2972.3,2971.6,4.08039757]
[1766725160809,0.9277,2972.3,2971.6,0.71525976]
[1766725161191,0.9277,2972.3,2971.6,4.08042646]
[1766725166217,0.9277,2972.3,2971.6,0.71525976]
[1766725167417,0.9277,2972.3,2971.6,4.08043718]
[1766725168026,0.9277,2972.3,2971.6,0.71525976]
[1766725168319,0.9277,2972.3,2971.5,3.36526367]
[1766725168504,4.29210916,2972.3,2971.5,0.001]
[1766725168709,0.9257,2972.2,2971.5,0.001]
[1766725173391,0.9257,2972.1,2971.5,0.001]
[1766725173591,3.36643359,2972.3,2971.5,0.001]
[1766725173796,0.67328129,2972.2,2971.5,0.001]
[1766725174112,1.59898129,2972.2,2971.5,0.001]
[1766725175295,0.9257,2972.1,2971.5,0.001]
[1766725177898,4.29033043,2972.1,2971.5,0.001]
[1766725178205,0.9257,2972.1,2971.5,0.001]
[1766725179222,0.9257,2972.1,2971.5,0.34110325]
[1766725179520,0.9277,2972.3,2971.6,0.0336519]
[1766725179913,0.9277,2972.3,2971.6,3.39882109]
[1766725180108,0.9277,2972.3,2971.5,0.34110325]
[1766725180315,0.9277,2972.3,2971.5,3.36624161]
[1766725182923,0.9277,2972.3,2971.5,0.001]
[1766725185996,0.002,2972.3,2971.5,0.001]
[1766725188611,0.9944,2972.3,2971.5,0.001]
[1766725190509,0.9924,2972.2,2971.5,0.001]
[1766725192002,1.76491874,2972.2,2971.5,0.001]
[1766725192204,0.9924,2972.1,2971.5,0.001]
[1766725192614,0.9924,2972.0,2971.5,0.001]
[1766725195433,0.9924,2971.9,2971.5,0.001]
[1766725199914,0.9924,2971.9,2971.3,0.0346553]
[1766725200114,0.9924,2971.8,2971.3,0.0346553]
[1766725200743,0.9924,2972.1,2971.3,3.40018553]
[1766725200943,0.9944,2972.3,2971.4,3.95636924]
[1766725201315,0.9944,2972.3,2971.3,6.73206046]
[1766725201521,0.9944,2972.3,2971.4,0.76150605]
[1766725202049,6.73090873,2972.3,2971.4,0.76150605]
[1766725202210,0.9924,2972.2,2971.5,0.001]
[1766725202545,0.9944,2972.2,2971.5,0.001]
[1766725203415,0.9944,2972.2,2971.3,0.001]
[1766725203911,0.9944,2972.2,2971.0,0.001]
[1766725204117,0.9924,2971.8,2971.0,0.001]
[1766725206443,3.3650677,2971.8,2971.0,0.001]
[1766725206645,0.9924,2971.7,2971.0,0.001]
[1766725208226,0.9924,2971.7,2971.0,0.0346587]
[1766725210547,0.9924,2971.7,2971.0,3.40050831]
[1766725210864,0.9924,2971.7,2971.0,0.7114169]
[1766725211020,0.9924,2971.7,2971.0,0.0346587]
[1766725211021,0.9924,2971.6,2971.0,0.0346587]
[1766725211219,0.9924,2971.6,2971.0,0.001]
[1766725213148,0.9924,2971.5,2971.0,0.001]
[1766725226359,0.9924,2971.5,2970.8,0.001]
[1766725226360,0.9104,2971.4,2970.8,0.001]
[1766725226663,0.9104,2971.2,2970.8,0.001]
[1766725227841,0.9104,2971.2,2971.0,0.001]
[1766725229869,0.9104,2971.2,2970.8,0.001]
[1766725230043,0.9104,2971.1,2970.8,0.001]
[1766725230243,0.9104,2971.0,2970.8,0.001]
[1766725232169,0.9104,2971.0,2970.5,0.001]
[1766725233176,0.76410296,2971.3,2970.5,0.03466436]
[1766725233177,0.9104,2971.3,2970.5,0.03466436]
[1766725234467,0.9104,2971.2,2970.5,0.001]
[1766725234773,0.9104,2971.2,2970.5,0.03466436]
[1766725235156,0.9104,2971.2,2970.5,3.88892288]
[1766725242178,0.9055,2971.1,2970.5,0.48882987]
[1766725243382,0.9055,2971.0,2969.9,3.19652635]
[1766725243553,0.9055,2971.0,2970.0,3.36697986]
[1766725244370,0.9055,2971.0,2970.1,0.0336689]
[1766725244570,0.9252,2970.8,2970.1,0.0336689]
[1766725244780,0.9252,2970.8,2969.8,7.32683179]
[1766725244980,0.9252,2970.8,2969.8,3.36819742]
[1766725245178,0.9252,2970.8,2969.9,3.36710877]
[1766725245486,0.9252,2970.7,2969.8,3.36818293]
[1766725245787,0.9252,2970.7,2969.9,3.99230553]
[1766725246167,0.9252,2970.7,2970.0,3.36698569]
[1766725246368,0.9252,2970.7,2970.1,0.0336689]
[1766725246581,0.9252,2970.7,2969.9,3.95863437]
[1766725246889,0.9252,2970.6,2969.8,3.36817804]
[1766725247058,0.9252,2970.6,2969.8,4.4377023]
[1766725247257,0.9252,2970.6,2969.8,1.07052426]
[1766725247988,0.9252,2970.6,2969.8,4.43775367]
[1766725249393,0.9252,2970.5,2969.8,1.07052426]
[1766725249761,0.9252,2970.5,2969.8,4.43774371]
[1766725249961,0.9252,2970.5,2969.9,0.44377437]
[1766725251294,0.9252,2970.5,2969.9,3.8108742]
[1766725251660,0.9252,2970.5,2969.9,0.44377437]
[1766725254292,0.9252,2970.5,2969.8,1.07052426]
[1766725254462,0.9252,2970.4,2969.9,0.03367116]
[1766725254662,0.9252,2970.4,2969.8,0.001]
[1766725255595,0.9252,2970.2,2969.5,0.883]
[1766725255798,0.9252,2970.1,2969.5,0.883]
[1766725257499,3.36689735,2970.1,2969.5,0.883]
[1766725257803,0.9252,2970.0,2969.3,3.36877071]
[1766725260200,0.9252,2970.0,2969.5,0.001]
[1766725260874,5.01567898,2970.2,2969.5,0.001]
[1766725260875,5.01565389,2970.2,2969.5,0.001]
[1766725261079,0.9252,2970.0,2969.3,0.001]
[1766725261413,0.9252,2970.0,2969.0,7.32672138]
[1766725261704,3.36705583,2970.0,2969.1,3.36798094]
[1766725261870,0.9252,2969.9,2969.1,3.36798094]
[1766725262285,0.9252,2969.9,2969.0,7.32671487]
[1766725262492,0.9252,2969.9,2969.1,1.06949375]
[1766725262690,0.9252,2969.9,2969.0,3.3680805]
[1766725264685,0.9252,2969.7,2968.9,3.95863437]
[1766725264889,0.9252,2969.6,2968.9,7.32688481]
[1766725265899,0.9252,2969.6,2969.1,3.95863437]
[1766725267522,0.9252,2969.6,2968.9,3.36825044]
[1766725267523,0.9252,2969.6,2968.9,0.001]
[1766725267728,3.36681686,2970.2,2968.9,0.001]
[1766725267729,0.9252,2970.0,2969.4,3.95863437]
[1766725267931,0.9252,2970.4,2969.8,3.95863437]
[1766725268084,0.002,2970.5,2970.3,3.95863437]
[1766725268286,3.36775157,2971.2,2970.5,0.828]
[1766725268287,0.883,2971.0,2970.5,0.828]
[1766725268490,4.29288753,2971.2,2970.5,0.828]
[1766725268491,0.9272,2971.2,2970.5,4.78663437]
[1766725268717,0.883,2971.1,2970.6,0.03366323]
[1766725268914,0.9252,2971.1,2970.6,0.03366323]
[1766725269094,1.8082,2971.1,2970.6,0.03366323]
[1766725269511,1.8082,2971.1,2970.3,3.95863437]
[1766725269512,0.9252,2971.0,2970.3,3.95863437]
[1766725269900,0.9252,2971.0,2970.3,7.32526667]
[1766725270095,0.9252,2971.0,2970.4,0.0168292]
[1766725270317,0.9252,2971.0,2970.4,0.9580292]
[1766725270616,0.9252,2970.8,2970.1,7.32546183]
[1766725271129,0.9252,2970.8,2970.1,6.32551941]
[1766725271337,0.04207337,2971.0,2970.3,4.30779391]
[1766725271788,0.04207337,2971.0,2970.2,0.63255194]
[1766725271990,0.04207337,2971.0,2970.3,3.36659391]
[1766725272204,0.04207337,2971.0,2970.3,0.9412]
[1766725272410,0.03870563,2971.0,2970.3,0.9412]
[1766725273335,0.03870563,2971.0,2970.4,0.9412]
[1766725275434,0.04070563,2971.0,2970.4,0.9412]
[1766725275840,0.04070563,2971.0,2970.3,8.45189337]
[1766725276429,0.04070563,2971.0,2970.4,0.9733]
[1766725277012,0.883,2971.0,2970.6,0.9733]
[1766725278541,0.0407028,2971.2,2970.8,0.9733]
[1766725278836,0.883,2971.1,2970.8,0.9733]
[1766725279238,3.36703107,2971.8,2971.0,0.9733]
[1766725279438,0.883,2971.6,2971.1,4.93193437]
[1766725279913,0.883,2971.6,2971.2,0.9733]
[1766725282344,3.39235119,2971.7,2971.2,0.9733]
[1766725282515,0.883,2971.6,2971.2,0.9733]
[1766725283144,0.885,2971.6,2971.2,0.9733]
[1766725286746,0.002,2971.6,2971.2,0.9733]
[1766725287065,1.22463455,2971.6,2971.2,0.9733]
[1766725287351,0.02526258,2971.5,2971.2,0.9733]
[1766725290832,0.91026258,2971.5,2971.2,0.9733]
[1766725291345,0.02726258,2971.5,2971.2,0.9733]
[1766725291549,0.91026258,2971.5,2971.2,0.9733]
[1766725292023,0.02726258,2971.5,2971.2,0.9733]
[1766725292226,0.91026258,2971.5,2971.2,0.9733]
[1766725293920,0.885,2971.5,2971.2,0.9733]
[1766725294119,0.002,2971.5,2971.2,0.9733]
[1766725294325,0.885,2971.5,2971.2,0.9733]
[1766725297139,0.002,2971.5,2971.2,0.9733]
[1766725298852,0.02726258,2971.5,2971.2,0.9733]
[1766725299048,0.45521024,2971.5,2971.0,0.001]
[1766725299354,0.45521024,2971.5,2971.0,0.9743]
[1766725304633,0.02726258,2971.5,2971.0,0.9743]
[1766725305753,0.885,2971.5,2971.0,0.9743]
[1766725305978,0.02526258,2971.4,2971.0,0.9743]
[1766725307373,0.002,2971.5,2971.0,0.9743]
[1766725307561,0.02726258,2971.5,2971.0,0.9743]
[1766725308340,0.42774553,2971.4,2971.0,0.9743]
[1766725309671,0.02526258,2971.3,2971.0,0.9743]
[1766725310475,0.002,2971.5,2971.0,0.001]
[1766725310772,0.883,2972.1,2971.3,0.9971]
[1766725310979,0.002,2972.4,2971.6,0.9971]
[1766725311154,0.002,2972.4,2971.5,3.95785151]
[1766725311155,0.002,2972.4,2971.8,0.9971]
[1766725313874,0.002,2972.4,2971.9,0.9971]
[1766725314442,0.002,2972.4,2971.7,3.86052105]
[1766725314678,0.002,2972.4,2971.7,0.49549515]
[1766725314880,0.002,2972.4,2971.8,0.9971]
[1766725315081,0.002,2972.2,2971.8,0.9971]
[1766725317875,0.002,2972.2,2971.9,0.9971]
[1766725319673,0.002,2972.4,2971.9,0.9971]
[1766725321783,3.36628475,2972.4,2971.9,0.9971]
[1766725323187,0.002,2972.4,2971.9,0.9971]
[1766725323393,0.883,2972.3,2971.9,0.9971]
[1766725324362,1.30813659,2972.3,2971.9,0.9971]
[1766725324601,4.67254621,2972.3,2971.9,0.9971]
[1766725324888,1.30813659,2972.3,2971.9,0.9971]
[1766725325886,0.42513659,2972.3,2971.9,0.9971]
[1766725326092,1.30813659,2972.3,2971.9,0.9971]
[1766725326288,4.6725492,2972.3,2971.9,0.9971]
[1766725326859,1.30813659,2972.3,2971.9,0.9971]
[1766725328103,4.67254477,2972.3,2971.9,0.9971]
[1766725328682,1.30813659,2972.3,2971.9,0.9971]
[1766725329382,1.30813659,2972.3,2971.9,0.9981]
[1766725329586,1.31013659,2972.3,2971.9,0.9981]
[1766725329753,4.67455282,2972.3,2971.9,0.9981]
[1766725329952,1.31013659,2972.3,2971.9,0.9981]
[1766725330382,0.42713659,2972.3,2971.9,0.9981]
[1766725331183,3.79153976,2972.3,2971.9,0.9981]
[1766725331362,4.67453976,2972.3,2971.9,0.9981]
[1766725331777,1.31013659,2972.3,2971.9,0.9981]
[1766725336021,0.885,2972.3,2971.9,0.9981]
[1766725337401,3.36622677,2972.5,2972.0,0.9942]
[1766725337599,3.36622677,2972.5,2971.6,3.3651419]
[1766725337600,3.36622677,2972.5,2971.8,0.9942]
[1766725337908,0.883,2972.4,2971.8,0.9942]
[1766725338801,0.883,2972.4,2972.0,0.9942]
[1766725339009,0.002,2972.3,2972.0,0.9942]
[1766725339321,0.002,2972.5,2972.0,0.9942]
[1766725339489,3.36617741,2972.5,2972.0,0.9942]
[1766725339813,4.03939321,2972.5,2972.0,0.9942]
[1766725340312,4.00740592,2972.5,2972.0,0.9942]
[1766725342692,0.6732158,2972.5,2972.0,0.9942]
[1766725343419,3.36409978,2972.6,2972.0,0.9942]
[1766725344125,0.002,2972.7,2972.0,0.9942]
[1766725345221,6.70146669,2972.9,2972.0,0.9942]
[1766725345518,7.46031336,2972.9,2972.0,0.9942]
[1766725346328,7.46031336,2972.9,2972.0,0.9952]
[1766725346729,0.002,2972.6,2972.0,0.9952]
[1766725351129,0.002,2972.6,2972.0,0.001]
[1766725351708,0.002,2972.6,2971.4,0.9942]
[1766725354005,0.002,2972.6,2971.5,0.9942]
[1766725355133,0.002,2972.6,2972.0,0.001]
[1766725355525,0.002,2972.6,2971.6,0.9942]
[1766725355730,0.883,2972.5,2971.6,0.9942]
[1766725357243,6.7285695,2972.4,2971.6,0.9942]
[1766725357411,0.76115695,2972.3,2971.6,0.9942]
[1766725358732,3.36451113,2972.2,2971.6,0.9942]
[1766725366868,4.12560056,2972.3,2971.6,0.9942]
[1766725367627,3.36433697,2972.4,2971.6,0.9942]
[1766725368055,6.72867394,2972.4,2971.6,0.9942]
[1766725369164,6.72834314,2972.5,2971.6,0.9942]
[1766725376080,6.73034314,2972.5,2971.6,0.9942]
[1766725376761,3.36617157,2972.5,2971.7,0.9424]
[1766725377059,7.50456878,2972.5,2971.7,0.9424]
[1766725378272,3.36617157,2972.5,2971.8,0.9424]
[1766725379359,6.73034314,2972.5,2971.8,0.9424]
[1766725379556,0.002,2972.5,2971.8,0.9424]
[1766725381286,0.002,2972.5,2972.0,0.9424]
[1766725382956,0.002,2972.5,2971.5,0.9434]
[1766725384994,0.67321168,2972.4,2971.5,0.9434]
[1766725385466,0.002,2972.5,2971.6,0.9424]
[1766725388194,0.002,2972.5,2971.5,0.001]
[1766725388562,1.01205509,2972.5,2971.5,0.001]
[1766725390567,6.7285695,2972.4,2971.5,0.001]
[1766725391109,10.09285425,2972.4,2971.1,1.8254]
[1766725391264,0.77406246,2972.3,2971.2,0.9424]
[1766725391471,1.78422979,2972.3,2971.2,0.9424]
[1766725391989,0.77406246,2972.3,2971.2,0.9424]
[1766725392192,2.02909167,2972.2,2971.2,0.9424]
[1766725392692,6.72924866,2972.1,2971.5,0.001]
[1766725393190,7.61224866,2972.1,2971.5,0.001]
[1766725394071,6.72924866,2972.1,2971.5,0.001]
[1766725394396,0.87583403,2972.0,2971.5,0.001]
[1766725394786,3.36485076,2971.9,2971.5,0.001]
[1766725398895,4.24062972,2972.0,2971.5,0.9601]
[1766725401275,7.60542541,2972.0,2971.5,0.9601]